[Event "Live Chess"]
[Site "Chess.com"]
[Date "2023.05.21"]
[Round "-"]
[White "diana21strabt"]
[Black "JanMur7"]
[Result "1/2-1/2"]
[WhiteElo "1753"]
[BlackElo "1952"]
[TimeControl "300"]
[EndTime "5:33:45 PDT"]
[Termination "Game drawn by repetition"]

1. e4 {[%clk 0:04:58.5]} 1... e5 {[%clk 0:04:59]} 2. Nf3 {[%clk 0:04:57.6]} 2...
Nc6 {[%clk 0:04:58]} 3. d4 {[%clk 0:04:56.9]} 3... exd4 {[%clk 0:04:57.9]} 4.
Bc4 {[%clk 0:04:56]} 4... Nf6 {[%clk 0:04:56.9]} 5. O-O {[%clk 0:04:54.4]} 5...
Bb4 {[%clk 0:04:54.5]} 6. e5 {[%clk 0:04:52.1]} 6... Ne4 {[%clk 0:04:53.3]} 7.
Qe2 {[%clk 0:04:48.5]} 7... Nc5 {[%clk 0:04:51.2]} 8. a3 {[%clk 0:04:43.3]} 8...
Ba5 {[%clk 0:04:44.9]} 9. b4 {[%clk 0:04:41.4]} 9... Bb6 {[%clk 0:04:41.5]} 10.
bxc5 {[%clk 0:04:40]} 10... Bxc5 {[%clk 0:04:41.4]} 11. Bb2 {[%clk 0:04:32.8]}
11... O-O {[%clk 0:04:40]} 12. Nbd2 {[%clk 0:04:31.7]} 12... d6 {[%clk
0:04:33.5]} 13. exd6 {[%clk 0:04:18.6]} 13... Qxd6 {[%clk 0:04:29.4]} 14. Ne4
{[%clk 0:04:15.7]} 14... Qe7 {[%clk 0:04:26.2]} 15. Nxc5 {[%clk 0:04:13.3]}
15... Qxc5 {[%clk 0:04:26.1]} 16. Bd3 {[%clk 0:04:11.3]} 16... g6 {[%clk
0:04:01.5]} 17. Qe4 {[%clk 0:03:47.4]} 17... Bf5 {[%clk 0:03:56.5]} 18. Qe2
{[%clk 0:03:41.2]} 18... Bxd3 {[%clk 0:03:52.8]} 19. Qxd3 {[%clk 0:03:39.2]}
19... Rad8 {[%clk 0:03:52]} 20. Rad1 {[%clk 0:03:35.8]} 20... Rfe8 {[%clk
0:03:43.2]} 21. Rfe1 {[%clk 0:03:33.7]} 21... Rxe1+ {[%clk 0:03:37.6]} 22. Rxe1
{[%clk 0:03:32.2]} 22... Qd6 {[%clk 0:03:34.2]} 23. h3 {[%clk 0:03:26]} 23...
Qd5 {[%clk 0:03:14.5]} 24. Rd1 {[%clk 0:03:23.3]} 24... Qh5 {[%clk 0:03:07]} 25.
Qe4 {[%clk 0:03:15.8]} 25... Qb5 {[%clk 0:03:01.9]} 26. Bxd4 {[%clk 0:03:10.8]}
26... Nxd4 {[%clk 0:02:53.9]} 27. Rxd4 {[%clk 0:03:09]} 27... Rxd4 {[%clk
0:02:50]} 28. Nxd4 {[%clk 0:03:07]} 28... Qd7 {[%clk 0:02:44.9]} 29. c3 {[%clk
0:03:03.3]} 29... c6 {[%clk 0:02:40.4]} 30. Qf4 {[%clk 0:02:58.3]} 30... a6
{[%clk 0:02:38]} 31. Qb8+ {[%clk 0:02:55.2]} 31... Kg7 {[%clk 0:02:31.7]} 32.
Qe5+ {[%clk 0:02:52.9]} 32... Kg8 {[%clk 0:02:23.8]} 33. Kh2 {[%clk 0:02:37.2]}
33... h5 {[%clk 0:02:12.5]} 34. Qg3 {[%clk 0:02:27.6]} 34... Qe7 {[%clk
0:02:06]} 35. c4 {[%clk 0:02:22.8]} 35... Qc5 {[%clk 0:02:01.7]} 36. Qd3 {[%clk
0:02:13.5]} 36... Qe5+ {[%clk 0:01:57]} 37. g3 {[%clk 0:02:11.7]} 37... Qf6
{[%clk 0:01:54.2]} 38. Kg2 {[%clk 0:02:07.3]} 38... Qd6 {[%clk 0:01:50.7]} 39.
Qe3 {[%clk 0:02:02.2]} 39... Kg7 {[%clk 0:01:40.5]} 40. Nf3 {[%clk 0:01:59.8]}
40... Kh7 {[%clk 0:01:33.6]} 41. Ng5+ {[%clk 0:01:50]} 41... Kg7 {[%clk
0:01:29.1]} 42. f4 {[%clk 0:01:48.4]} 42... Qd7 {[%clk 0:01:09.1]} 43. Qc3+
{[%clk 0:01:36.7]} 43... Kg8 {[%clk 0:01:01.9]} 44. Ne4 {[%clk 0:01:25]} 44...
Qe7 {[%clk 0:00:57.1]} 45. Nf6+ {[%clk 0:01:22.2]} 45... Kf8 {[%clk 0:00:54.2]}
46. Nh7+ {[%clk 0:01:20.8]} 46... Kg8 {[%clk 0:00:53]} 47. Nf6+ {[%clk
0:01:18.9]} 47... Kf8 {[%clk 0:00:52]} 48. Nh7+ {[%clk 0:01:10.7]} 48... Kg8
{[%clk 0:00:50.6]} 49. Nf6+ {[%clk 0:01:01.8]} 1/2-1/2

[Event "Live Chess"]
[Site "Chess.com"]
[Date "2023.05.21"]
[Round "-"]
[White "LiamBellwood"]
[Black "grillage"]
[Result "1-0"]
[WhiteElo "1920"]
[BlackElo "1796"]
[TimeControl "300"]
[EndTime "5:34:04 PDT"]
[Termination "LiamBellwood won by resignation"]

1. d4 {[%clk 0:04:59]} 1... Nf6 {[%clk 0:04:58.3]} 2. Nc3 {[%clk 0:04:57.5]}
2... d5 {[%clk 0:04:55.1]} 3. Bf4 {[%clk 0:04:56.9]} 3... c5 {[%clk 0:04:54]} 4.
e4 {[%clk 0:04:56.1]} 4... Nxe4 {[%clk 0:04:53.1]} 5. Nxe4 {[%clk 0:04:55]} 5...
dxe4 {[%clk 0:04:51.7]} 6. dxc5 {[%clk 0:04:54.9]} 6... Qa5+ {[%clk 0:04:50.1]}
7. c3 {[%clk 0:04:54.4]} 7... Qxc5 {[%clk 0:04:49.3]} 8. Qa4+ {[%clk 0:04:54.1]}
8... Nc6 {[%clk 0:04:46.1]} 9. Qxe4 {[%clk 0:04:54]} 9... g6 {[%clk 0:04:42.7]}
10. Be3 {[%clk 0:04:51.1]} 10... Qe5 {[%clk 0:04:32.1]} 11. Qxe5 {[%clk
0:04:43.9]} 11... Nxe5 {[%clk 0:04:31.1]} 12. Bd4 {[%clk 0:04:43.8]} 12... f6
{[%clk 0:04:14.4]} 13. Bb5+ {[%clk 0:04:39.8]} 13... Nc6 {[%clk 0:04:11.6]} 14.
O-O-O {[%clk 0:04:35.4]} 14... e5 {[%clk 0:04:08.5]} 15. Be3 {[%clk 0:04:31.4]}
15... Bf5 {[%clk 0:04:05.5]} 16. Ne2 {[%clk 0:04:23.3]} 16... a6 {[%clk
0:03:58.4]} 17. Bc4 {[%clk 0:04:15.2]} 17... b5 {[%clk 0:03:52.5]} 18. Bd5
{[%clk 0:04:14.3]} 18... Rc8 {[%clk 0:03:51.6]} 19. Ng3 {[%clk 0:04:11.8]} 19...
Bd7 {[%clk 0:03:38.3]} 20. Ne4 {[%clk 0:04:10.3]} 20... Be7 {[%clk 0:03:31.8]}
21. Nc5 {[%clk 0:04:01.3]} 21... Bxc5 {[%clk 0:03:25.3]} 22. Bxc5 {[%clk
0:04:01.2]} 22... b4 {[%clk 0:03:20.7]} 23. Bxc6 {[%clk 0:03:56.2]} 23... Bxc6
{[%clk 0:03:14.9]} 24. Bxb4 {[%clk 0:03:43.1]} 24... Bxg2 {[%clk 0:03:13.3]} 25.
Rhg1 {[%clk 0:03:40.9]} 25... Bf3 {[%clk 0:03:08.7]} 26. Rd6 {[%clk 0:03:39.9]}
26... Kf7 {[%clk 0:02:45.9]} 27. Rxa6 {[%clk 0:03:34]} 27... Rhd8 {[%clk
0:02:42.2]} 28. Ra7+ {[%clk 0:03:29.3]} 28... Kg8 {[%clk 0:02:38.3]} 29. Be7
{[%clk 0:03:21.9]} 29... Rd3 {[%clk 0:02:29]} 30. Bxf6 {[%clk 0:03:10.7]} 30...
e4 {[%clk 0:02:10.1]} 31. Rg7+ {[%clk 0:03:08.5]} 31... Kf8 {[%clk 0:02:08.7]}
32. Rxh7 {[%clk 0:03:07.6]} 32... Rc6 {[%clk 0:02:07.4]} 33. Rxg6 {[%clk
0:02:52.1]} 33... Rcd6 {[%clk 0:01:47.4]} 34. Be7+ {[%clk 0:02:49.1]} 1-0

[Event "Live Chess"]
[Site "Chess.com"]
[Date "2023.05.21"]
[Round "-"]
[White "TheSmoulderingMaster"]
[Black "garyjc"]
[Result "1-0"]
[WhiteElo "1640"]
[BlackElo "1040"]
[TimeControl "300"]
[EndTime "5:34:12 PDT"]
[Termination "TheSmoulderingMaster won by resignation"]

1. e4 {[%clk 0:04:58.5]} 1... c5 {[%clk 0:04:58.9]} 2. Nf3 {[%clk 0:04:56.9]}
2... a6 {[%clk 0:04:54.9]} 3. d4 {[%clk 0:04:55.9]} 3... cxd4 {[%clk 0:04:53.1]}
4. Nxd4 {[%clk 0:04:55.8]} 4... e5 {[%clk 0:04:48.8]} 5. Nf5 {[%clk 0:04:53.8]}
5... b5 {[%clk 0:04:27.4]} 6. Nc3 {[%clk 0:04:49.7]} 6... Bb4 {[%clk 0:04:20.2]}
7. Nxg7+ {[%clk 0:04:43.3]} 7... Kf8 {[%clk 0:04:14.1]} 8. Nf5 {[%clk
0:04:41.6]} 8... Ne7 {[%clk 0:04:09.8]} 9. Bh6+ {[%clk 0:04:39.5]} 9... Ke8
{[%clk 0:04:08.4]} 10. Qd6 {[%clk 0:04:36]} 10... Nxf5 {[%clk 0:03:53.5]} 11.
Qxb4 {[%clk 0:04:34.6]} 11... Nc6 {[%clk 0:03:44.8]} 12. Qc5 {[%clk 0:04:23.3]}
12... Nfd4 {[%clk 0:03:42.4]} 13. O-O-O {[%clk 0:04:12.5]} 13... Bb7 {[%clk
0:03:17.6]} 14. Bg7 {[%clk 0:04:05.9]} 14... Rg8 {[%clk 0:03:14.5]} 15. Bxe5
{[%clk 0:04:04.9]} 15... Nxe5 {[%clk 0:03:05.8]} 16. Qxe5+ {[%clk 0:04:03.1]}
16... Ne6 {[%clk 0:03:05.5]} 17. f4 {[%clk 0:03:57.3]} 17... Qc7 {[%clk
0:02:53.8]} 18. Rd6 {[%clk 0:03:53.3]} 18... Kf8 {[%clk 0:02:31.1]} 19. Rxe6
{[%clk 0:03:50.4]} 19... Qxe5 {[%clk 0:02:24.2]} 20. Rxe5 {[%clk 0:03:48.9]}
20... Rc8 {[%clk 0:02:15.7]} 21. g3 {[%clk 0:03:46]} 21... d6 {[%clk 0:02:09.1]}
22. Rf5 {[%clk 0:03:38.7]} 22... Rg6 {[%clk 0:01:53.1]} 23. Bh3 {[%clk
0:03:33.6]} 23... b4 {[%clk 0:01:33.6]} 24. Nd5 {[%clk 0:03:30.2]} 24... Bxd5
{[%clk 0:01:20.8]} 25. Rxd5 {[%clk 0:03:28.8]} 25... a5 {[%clk 0:01:15.8]} 26.
Rxa5 {[%clk 0:03:27.1]} 26... Rc4 {[%clk 0:01:05]} 27. Re1 {[%clk 0:03:23.9]}
27... Re6 {[%clk 0:00:59.2]} 28. Bxe6 {[%clk 0:03:21.4]} 1-0

[Event "Live Chess"]
[Site "Chess.com"]
[Date "2023.05.21"]
[Round "-"]
[White "martynstanley"]
[Black "GMHarry-youtube"]
[Result "1/2-1/2"]
[WhiteElo "1017"]
[BlackElo "2024"]
[TimeControl "300"]
[EndTime "5:35:11 PDT"]
[Termination "Game drawn by stalemate"]

1. d4 {[%clk 0:04:57.8]} 1... Nf6 {[%clk 0:04:58.7]} 2. e3 {[%clk 0:04:55.5]}
2... g6 {[%clk 0:04:58.6]} 3. Bd3 {[%clk 0:04:54.6]} 3... Bg7 {[%clk 0:04:58]}
4. f4 {[%clk 0:04:53.8]} 4... O-O {[%clk 0:04:57.2]} 5. Nf3 {[%clk 0:04:52.7]}
5... d5 {[%clk 0:04:55.2]} 6. O-O {[%clk 0:04:51.5]} 6... c5 {[%clk 0:04:54.1]}
7. Ne5 {[%clk 0:04:50.3]} 7... c4 {[%clk 0:04:49.5]} 8. Be2 {[%clk 0:04:44.9]}
8... Nfd7 {[%clk 0:04:47.7]} 9. c3 {[%clk 0:04:43]} 9... f6 {[%clk 0:04:46.1]}
10. Nxg6 {[%clk 0:04:40]} 10... hxg6 {[%clk 0:04:44.6]} 11. Rf3 {[%clk
0:04:37.6]} 11... e5 {[%clk 0:04:42.9]} 12. Rg3 {[%clk 0:04:34.9]} 12... Kf7
{[%clk 0:04:39.6]} 13. fxe5 {[%clk 0:04:29.5]} 13... fxe5 {[%clk 0:04:35.1]} 14.
Rf3+ {[%clk 0:04:27.2]} 14... Ke8 {[%clk 0:04:31.4]} 15. Rxf8+ {[%clk
0:04:25.7]} 15... Kxf8 {[%clk 0:04:31.3]} 16. Qf1+ {[%clk 0:04:24.2]} 16... Qf6
{[%clk 0:04:29.3]} 17. Qxf6+ {[%clk 0:04:22.1]} 17... Bxf6 {[%clk 0:04:29.2]}
18. dxe5 {[%clk 0:04:21.4]} 18... Nxe5 {[%clk 0:04:28]} 19. Nd2 {[%clk
0:04:20.6]} 19... Nbc6 {[%clk 0:04:26.2]} 20. Nf3 {[%clk 0:04:17.8]} 20... Nxf3+
{[%clk 0:04:24.4]} 21. gxf3 {[%clk 0:04:16.9]} 21... Be6 {[%clk 0:04:24.3]} 22.
Kf2 {[%clk 0:04:13.9]} 22... Ke7 {[%clk 0:04:22.5]} 23. Bd2 {[%clk 0:04:13.1]}
23... Rh8 {[%clk 0:04:21.9]} 24. Rh1 {[%clk 0:04:12.2]} 24... Be5 {[%clk
0:04:20.1]} 25. f4 {[%clk 0:04:10.1]} 25... Bf6 {[%clk 0:04:17.9]} 26. Bf1
{[%clk 0:04:05.5]} 26... Bh3 {[%clk 0:04:15.7]} 27. Bxh3 {[%clk 0:04:02.7]}
27... Rxh3 {[%clk 0:04:15.6]} 28. Kg2 {[%clk 0:04:00.5]} 28... Rh5 {[%clk
0:04:14.8]} 29. h3 {[%clk 0:03:59.4]} 29... Kf7 {[%clk 0:04:13.9]} 30. Kg3
{[%clk 0:03:58.5]} 30... Ne7 {[%clk 0:04:13]} 31. Kg4 {[%clk 0:03:57.3]} 31...
Nf5 {[%clk 0:04:11.9]} 32. b3 {[%clk 0:03:53.4]} 32... b5 {[%clk 0:04:04.6]} 33.
b4 {[%clk 0:03:51.2]} 33... Nh6+ {[%clk 0:04:01.7]} 34. Kg3 {[%clk 0:03:47.9]}
34... g5 {[%clk 0:04:00.5]} 35. fxg5 {[%clk 0:03:46.7]} 35... Rxg5+ {[%clk
0:03:59.3]} 36. Kf3 {[%clk 0:03:44.6]} 36... Rh5 {[%clk 0:03:58.2]} 37. Rh2
{[%clk 0:03:43.5]} 37... Nf5 {[%clk 0:03:57.4]} 38. Rg2 {[%clk 0:03:41.9]} 38...
Rxh3+ {[%clk 0:03:56.2]} 39. Ke2 {[%clk 0:03:39.5]} 39... Bh4 {[%clk 0:03:53.9]}
40. a3 {[%clk 0:03:35.6]} 40... Ng3+ {[%clk 0:03:53]} 41. Kf3 {[%clk 0:03:31]}
41... Ne4+ {[%clk 0:03:50.2]} 42. Kf4 {[%clk 0:03:29.2]} 42... Bg5+ {[%clk
0:03:48.6]} 43. Ke5 {[%clk 0:03:27.5]} 43... Nxd2 {[%clk 0:03:44.6]} 44. Kxd5
{[%clk 0:03:26.2]} 44... Rxe3 {[%clk 0:03:40.3]} 45. Rxg5 {[%clk 0:03:25]} 45...
Rxc3 {[%clk 0:03:39.3]} 46. Kc5 {[%clk 0:03:23.9]} 46... Rxa3 {[%clk 0:03:38.4]}
47. Kxb5 {[%clk 0:03:23]} 47... c3 {[%clk 0:03:37.9]} 48. Rf5+ {[%clk 0:03:20]}
48... Ke6 {[%clk 0:03:36.5]} 49. Rc5 {[%clk 0:03:16.1]} 49... Ne4 {[%clk
0:03:35.3]} 50. Rc4 {[%clk 0:03:14]} 50... Nd6+ {[%clk 0:03:34.1]} 51. Kc5
{[%clk 0:03:11]} 51... Nxc4 {[%clk 0:03:33.2]} 52. Kxc4 {[%clk 0:03:10.3]} 52...
c2 {[%clk 0:03:33.1]} 53. Kb5 {[%clk 0:03:09.6]} 53... c1=Q {[%clk 0:03:33]}
1/2-1/2

[Event "Live Chess"]
[Site "Chess.com"]
[Date "2023.05.21"]
[Round "-"]
[White "Anirudh_23"]
[Black "viktorskliarov"]
[Result "0-1"]
[WhiteElo "1890"]
[BlackElo "2649"]
[TimeControl "300"]
[EndTime "5:35:24 PDT"]
[Termination "viktorskliarov won by resignation"]

1. Nf3 {[%clk 0:04:57.7]} 1... c5 {[%clk 0:04:51.8]} 2. g3 {[%clk 0:04:54.2]}
2... Nc6 {[%clk 0:04:45.6]} 3. Bg2 {[%clk 0:04:50.2]} 3... g6 {[%clk 0:04:44.6]}
4. O-O {[%clk 0:04:45.3]} 4... Bg7 {[%clk 0:04:44.3]} 5. c4 {[%clk 0:04:40.7]}
5... Nf6 {[%clk 0:04:43]} 6. Nc3 {[%clk 0:04:34.5]} 6... O-O {[%clk 0:04:40]} 7.
d4 {[%clk 0:04:33]} 7... cxd4 {[%clk 0:04:38.9]} 8. Nxd4 {[%clk 0:04:32.9]} 8...
Nxd4 {[%clk 0:04:37.3]} 9. Qxd4 {[%clk 0:04:32.8]} 9... d6 {[%clk 0:04:36.8]}
10. Rd1 {[%clk 0:04:11.5]} 10... Qa5 {[%clk 0:04:23]} 11. Qd3 {[%clk 0:03:59.5]}
11... Bf5 {[%clk 0:03:53.3]} 12. e4 {[%clk 0:03:52.6]} 12... Bg4 {[%clk
0:03:51.8]} 13. f3 {[%clk 0:03:42.9]} 13... Be6 {[%clk 0:03:49.6]} 14. Be3
{[%clk 0:03:32.9]} 14... Rfc8 {[%clk 0:03:37.9]} 15. Nd5 {[%clk 0:03:24.7]}
15... Nxd5 {[%clk 0:03:28.7]} 16. cxd5 {[%clk 0:02:53.6]} 16... Bd7 {[%clk
0:03:23.9]} 17. Bd4 {[%clk 0:02:49.8]} 17... Bb5 {[%clk 0:03:13.7]} 18. Qd2
{[%clk 0:02:21]} 18... Qxd2 {[%clk 0:03:07.7]} 19. Rxd2 {[%clk 0:02:20.9]} 19...
Bxd4+ {[%clk 0:03:06.8]} 20. Rxd4 {[%clk 0:02:20.8]} 20... Rc2 {[%clk 0:03:06]}
21. Rb4 {[%clk 0:01:54.8]} 21... Ba6 {[%clk 0:02:58.3]} 22. Bh3 {[%clk
0:01:34.3]} 22... Rd8 {[%clk 0:02:28.5]} 23. Re1 {[%clk 0:01:20.2]} 23... Kg7
{[%clk 0:02:23.5]} 24. f4 {[%clk 0:00:53.8]} 24... Kf6 {[%clk 0:02:08.6]} 25.
e5+ {[%clk 0:00:50]} 25... dxe5 {[%clk 0:02:07.8]} 26. fxe5+ {[%clk 0:00:49.9]}
26... Kg7 {[%clk 0:02:06.2]} 27. e6 {[%clk 0:00:31.6]} 27... f5 {[%clk
0:01:56.1]} 28. Re5 {[%clk 0:00:28.9]} 28... Kf6 {[%clk 0:01:53.8]} 0-1

[Event "Live Chess"]
[Site "Chess.com"]
[Date "2023.05.21"]
[Round "-"]
[White "Alfiedog12"]
[Black "mliszewski"]
[Result "0-1"]
[WhiteElo "939"]
[BlackElo "1808"]
[TimeControl "300"]
[EndTime "5:35:28 PDT"]
[Termination "mliszewski won on time"]

1. d4 {[%clk 0:04:55.6]} 1... d5 {[%clk 0:04:58.1]} 2. Bf4 {[%clk 0:04:54.4]}
2... c6 {[%clk 0:04:57]} 3. e3 {[%clk 0:04:53.4]} 3... Qb6 {[%clk 0:04:56.5]} 4.
Qc1 {[%clk 0:04:48.4]} 4... Nf6 {[%clk 0:04:53.1]} 5. c3 {[%clk 0:04:46.7]} 5...
Bf5 {[%clk 0:04:52.6]} 6. Nd2 {[%clk 0:04:44]} 6... e6 {[%clk 0:04:51.8]} 7.
Ngf3 {[%clk 0:04:41.6]} 7... c5 {[%clk 0:04:51.2]} 8. dxc5 {[%clk 0:04:39]} 8...
Bxc5 {[%clk 0:04:50]} 9. Nb3 {[%clk 0:04:26.9]} 9... Bd6 {[%clk 0:04:48.4]} 10.
Bg3 {[%clk 0:04:18.9]} 10... O-O {[%clk 0:04:46.5]} 11. Be2 {[%clk 0:04:10.2]}
11... Ne4 {[%clk 0:04:44.8]} 12. Nbd4 {[%clk 0:03:58.7]} 12... Bg6 {[%clk
0:04:42.7]} 13. Bxd6 {[%clk 0:03:54.1]} 13... Qxd6 {[%clk 0:04:39.6]} 14. O-O
{[%clk 0:03:45]} 14... a6 {[%clk 0:04:35.2]} 15. Bd3 {[%clk 0:03:39.7]} 15...
Nd7 {[%clk 0:04:33.9]} 16. Qc2 {[%clk 0:03:32.2]} 16... Ne5 {[%clk 0:04:27.3]}
17. Nxe5 {[%clk 0:03:24.4]} 17... Qxe5 {[%clk 0:04:25.9]} 18. f4 {[%clk
0:03:06.4]} 18... Qh5 {[%clk 0:04:18.8]} 19. Be2 {[%clk 0:02:50.7]} 19... Qh6
{[%clk 0:04:16.4]} 20. f5 {[%clk 0:02:37]} 20... Qxe3+ {[%clk 0:04:06]} 21. Kh1
{[%clk 0:02:36]} 21... Nf2+ {[%clk 0:04:02.6]} 22. Rxf2 {[%clk 0:02:27.8]} 22...
Bxf5 {[%clk 0:03:56.9]} 23. Nxf5 {[%clk 0:01:49.8]} 23... Qxf2 {[%clk
0:03:55.1]} 24. Rf1 {[%clk 0:01:45.8]} 24... Qb6 {[%clk 0:03:47.1]} 25. Ne7+
{[%clk 0:01:36]} 25... Kh8 {[%clk 0:03:45.7]} 26. Rf3 {[%clk 0:01:16.1]} 26...
Qd6 {[%clk 0:03:28.5]} 27. Rh3 {[%clk 0:01:10]} 27... f5 {[%clk 0:03:18.7]} 28.
Ng6+ {[%clk 0:01:02.7]} 28... Kg8 {[%clk 0:03:17.4]} 29. Nxf8 {[%clk 0:00:58.5]}
29... Rxf8 {[%clk 0:03:17.3]} 30. Qd2 {[%clk 0:00:42.2]} 30... e5 {[%clk
0:03:05.1]} 31. Qg5 {[%clk 0:00:36.3]} 31... d4 {[%clk 0:02:56.7]} 32. Rg3
{[%clk 0:00:26]} 32... Rf7 {[%clk 0:02:54.4]} 33. Bc4 {[%clk 0:00:19.4]} 33...
Qf6 {[%clk 0:02:47.6]} 34. Bxf7+ {[%clk 0:00:17.1]} 34... Kxf7 {[%clk
0:02:46.9]} 35. Qh5+ {[%clk 0:00:12.7]} 35... Ke6 {[%clk 0:02:44]} 36. Qxh7
{[%clk 0:00:11]} 36... dxc3 {[%clk 0:02:39.3]} 37. Qg8+ {[%clk 0:00:09.6]} 37...
Kd6 {[%clk 0:02:38.2]} 38. Rd3+ {[%clk 0:00:08.4]} 38... Kc6 {[%clk 0:02:36.1]}
39. Qd5+ {[%clk 0:00:07.4]} 39... Kb6 {[%clk 0:02:35.2]} 40. Qd8+ {[%clk
0:00:01.7]} 40... Qxd8 {[%clk 0:02:33.4]} 41. Rxd8 {[%clk 0:00:00.5]} 41... e4
{[%clk 0:02:33.3]} 0-1

[Event "Live Chess"]
[Site "Chess.com"]
[Date "2023.05.21"]
[Round "-"]
[White "ChessTWSS"]
[Black "LiamClery2020"]
[Result "0-1"]
[WhiteElo "1601"]
[BlackElo "1990"]
[TimeControl "300"]
[EndTime "5:35:29 PDT"]
[Termination "LiamClery2020 won by checkmate"]

1. d4 {[%clk 0:04:58.2]} 1... Nf6 {[%clk 0:04:57.4]} 2. Bf4 {[%clk 0:04:54.7]}
2... d6 {[%clk 0:04:56.5]} 3. Nf3 {[%clk 0:04:49]} 3... Nc6 {[%clk 0:04:53.2]}
4. e3 {[%clk 0:04:44.5]} 4... Bg4 {[%clk 0:04:51.9]} 5. Bb5 {[%clk 0:04:37.1]}
5... e6 {[%clk 0:04:43.8]} 6. h3 {[%clk 0:04:31.2]} 6... Bxf3 {[%clk 0:04:42.3]}
7. Qxf3 {[%clk 0:04:27.1]} 7... d5 {[%clk 0:04:42.2]} 8. Bg5 {[%clk 0:04:20.1]}
8... Be7 {[%clk 0:04:33.4]} 9. Nc3 {[%clk 0:04:13.8]} 9... O-O {[%clk
0:04:31.4]} 10. Bxc6 {[%clk 0:04:07.6]} 10... bxc6 {[%clk 0:04:30.3]} 11. Bxf6
{[%clk 0:04:06.5]} 11... Bxf6 {[%clk 0:04:29.5]} 12. O-O {[%clk 0:03:59.1]}
12... Rb8 {[%clk 0:04:28.5]} 13. Na4 {[%clk 0:03:50.8]} 13... Qd6 {[%clk
0:04:24]} 14. b3 {[%clk 0:03:43.5]} 14... e5 {[%clk 0:04:22.6]} 15. Rfd1 {[%clk
0:03:34.5]} 15... exd4 {[%clk 0:04:21.2]} 16. exd4 {[%clk 0:03:31]} 16... Rfe8
{[%clk 0:04:20.3]} 17. c4 {[%clk 0:03:24.4]} 17... Re4 {[%clk 0:04:16.5]} 18.
cxd5 {[%clk 0:03:18.4]} 18... cxd5 {[%clk 0:04:16.4]} 19. Nc5 {[%clk 0:03:08.9]}
19... Rxd4 {[%clk 0:04:09.1]} 20. Rxd4 {[%clk 0:03:03.8]} 20... Bxd4 {[%clk
0:04:06.9]} 21. Rc1 {[%clk 0:02:42.3]} 21... Bxc5 {[%clk 0:04:05.8]} 22. Qc3
{[%clk 0:02:34.3]} 22... Bb6 {[%clk 0:04:01.6]} 23. Qc6 {[%clk 0:02:25.4]} 23...
Qxc6 {[%clk 0:03:59.6]} 24. Rxc6 {[%clk 0:02:21.1]} 24... Re8 {[%clk 0:03:59.1]}
25. a4 {[%clk 0:02:16.5]} 25... d4 {[%clk 0:03:58.2]} 26. Rc1 {[%clk 0:02:09.7]}
26... Ba5 {[%clk 0:03:48.6]} 27. Rd1 {[%clk 0:01:59.5]} 27... Re1+ {[%clk
0:03:44.1]} 28. Rxe1 {[%clk 0:01:52.6]} 28... Bxe1 {[%clk 0:03:44]} 29. Kf1
{[%clk 0:01:51.9]} 29... Bc3 {[%clk 0:03:42.2]} 30. Ke2 {[%clk 0:01:51]} 30...
Kf8 {[%clk 0:03:41.3]} 31. Kd3 {[%clk 0:01:50]} 31... Ke7 {[%clk 0:03:41]} 32.
f4 {[%clk 0:01:48.5]} 32... Kd6 {[%clk 0:03:40.9]} 33. g4 {[%clk 0:01:48.1]}
33... g6 {[%clk 0:03:40]} 34. h4 {[%clk 0:01:47.6]} 34... f5 {[%clk 0:03:39]}
35. gxf5 {[%clk 0:01:45.5]} 35... gxf5 {[%clk 0:03:38]} 36. h5 {[%clk 0:01:45]}
36... h6 {[%clk 0:03:37.4]} 37. Kc4 {[%clk 0:01:41]} 37... a6 {[%clk 0:03:36.9]}
38. b4 {[%clk 0:01:40.4]} 38... Bxb4 {[%clk 0:03:33.5]} 39. Kxb4 {[%clk
0:01:39.4]} 39... Kd5 {[%clk 0:03:33.4]} 40. Kb3 {[%clk 0:01:38.5]} 40... Ke4
{[%clk 0:03:32.6]} 41. Kc2 {[%clk 0:01:38]} 41... Ke3 {[%clk 0:03:32.1]} 42. Kd1
{[%clk 0:01:36.8]} 42... Kd3 {[%clk 0:03:32]} 43. Kc1 {[%clk 0:01:35.9]} 43...
Ke2 {[%clk 0:03:31.2]} 44. Kc2 {[%clk 0:01:34.8]} 44... d3+ {[%clk 0:03:31.1]}
45. Kc3 {[%clk 0:01:34.1]} 45... d2 {[%clk 0:03:31]} 46. Kc4 {[%clk 0:01:33.7]}
46... d1=Q {[%clk 0:03:30.9]} 47. Kc5 {[%clk 0:01:33.4]} 47... Qxa4 {[%clk
0:03:28.7]} 48. Kd5 {[%clk 0:01:33.3]} 48... Qb5+ {[%clk 0:03:27.6]} 49. Ke6
{[%clk 0:01:33.2]} 49... a5 {[%clk 0:03:26.4]} 50. Ke7 {[%clk 0:01:30.7]} 50...
a4 {[%clk 0:03:26.3]} 51. Kd8 {[%clk 0:01:29.6]} 51... a3 {[%clk 0:03:26.2]} 52.
Kxc7 {[%clk 0:01:29.5]} 52... a2 {[%clk 0:03:26.1]} 53. Kd8 {[%clk 0:01:28.9]}
53... a1=Q {[%clk 0:03:25]} 54. Ke7 {[%clk 0:01:28.8]} 54... Qb7+ {[%clk
0:03:23.2]} 55. Ke6 {[%clk 0:01:27.3]} 55... Qaa6+ {[%clk 0:03:22.3]} 56. Kxf5
{[%clk 0:01:26.2]} 56... Qbb5+ {[%clk 0:03:22.2]} 57. Kg4 {[%clk 0:01:25.3]}
57... Qe6+ {[%clk 0:03:21.5]} 58. f5 {[%clk 0:01:23.8]} 58... Qbxf5+ {[%clk
0:03:20.3]} 59. Kh4 {[%clk 0:01:23]} 59... Qh3# {[%clk 0:03:19.9]} 0-1

[Event "Live Chess"]
[Site "Chess.com"]
[Date "2023.05.21"]
[Round "-"]
[White "Doge_Dandolo"]
[Black "Hacker_2009"]
[Result "1-0"]
[WhiteElo "1918"]
[BlackElo "1937"]
[TimeControl "300"]
[EndTime "5:35:52 PDT"]
[Termination "Doge_Dandolo won by resignation"]

1. Nf3 {[%clk 0:04:57]} 1... Nf6 {[%clk 0:04:57.7]} 2. c4 {[%clk 0:04:52.2]}
2... e6 {[%clk 0:04:56.1]} 3. g3 {[%clk 0:04:48.7]} 3... Be7 {[%clk 0:04:53.3]}
4. Bg2 {[%clk 0:04:41.8]} 4... d5 {[%clk 0:04:52.7]} 5. O-O {[%clk 0:04:36.8]}
5... O-O {[%clk 0:04:50.8]} 6. d4 {[%clk 0:04:30.7]} 6... b6 {[%clk 0:04:48.9]}
7. cxd5 {[%clk 0:04:24.8]} 7... Nxd5 {[%clk 0:04:47.2]} 8. e4 {[%clk 0:04:23.3]}
8... Nf6 {[%clk 0:04:45.3]} 9. Nc3 {[%clk 0:04:21.7]} 9... Bb7 {[%clk
0:04:44.1]} 10. Qc2 {[%clk 0:04:20.2]} 10... c5 {[%clk 0:04:42.8]} 11. Rd1
{[%clk 0:04:18.3]} 11... cxd4 {[%clk 0:04:39.2]} 12. Nxd4 {[%clk 0:04:15.6]}
12... Qc7 {[%clk 0:04:38.7]} 13. Bf4 {[%clk 0:04:09.4]} 13... e5 {[%clk
0:04:35.9]} 14. Ndb5 {[%clk 0:04:07.8]} 14... Qc5 {[%clk 0:04:27.7]} 15. Be3
{[%clk 0:04:05.4]} 15... Qc8 {[%clk 0:04:20.7]} 16. Rac1 {[%clk 0:04:02.9]}
16... a6 {[%clk 0:04:16.8]} 17. Nd6 {[%clk 0:04:00.2]} 17... Bxd6 {[%clk
0:04:14.8]} 18. Rxd6 {[%clk 0:03:56.3]} 18... Nc6 {[%clk 0:04:13.2]} 19. Bxb6
{[%clk 0:03:47.1]} 19... Ne7 {[%clk 0:03:51.6]} 20. Rcd1 {[%clk 0:03:31.3]}
20... Ng6 {[%clk 0:03:47.9]} 21. f3 {[%clk 0:03:17.6]} 21... Qc4 {[%clk
0:03:38.7]} 22. Bf1 {[%clk 0:03:10.2]} 22... Qb4 {[%clk 0:03:32.2]} 23. a3
{[%clk 0:03:07.5]} 1-0